[Event "Memorijal Nesic Predrag IM 202"]
[Site "Pozarevac"]
[Date "2022.02.13"]
[Round "7.3"]
[White "Sanz Wawer, Daniel"]
[Black "Dev, Shah"]
[Result "1/2-1/2"]
[ECO "C78"]
[WhiteElo "2371"]
[BlackElo "2272"]
[Annotator "ChessBase"]
[PlyCount "133"]
[EventDate "2022.02.08"]
[EventType "tourn"]
[EventCountry "SRB"]
[SourceTitle "playchess.com"]
[Source "ChessBase"]
[SourceQuality "1"]
[TimeControl "40/5400+30:900+30"]

1. e4 {[%emt 0:02:44]} e5 {[%emt 0:00:30]} 2. Nf3 {[%emt 0:00:05]} Nc6 {[%emt 0:00:06]} 3. Bb5 {[%emt 0:00:05]} a6 {[%emt 0:00:07]} 4. Ba4 {[%emt 0:00:05]} Nf6 {[%emt 0:00:06]} 5. O-O {[%emt 0:00:09]} b5 {[%emt 0:00:09]} 6. Bb3 {[%emt 0:00:05]} Bc5 {[%emt 0:00:06]} 7. c3 {[%emt 0:01:59]} d6 {[%emt 0:00:06]} 8. d4 {[%emt 0:01:46]} Bb6 {[%emt 0:00:02]} 9. a4 {[%emt 0:00:25]} Rb8 {[%emt 0:00:01]} 10. a5 {[%emt 0:05:06]} Ba7 {[%emt 0:00:02]} 11. h3 {[%emt 0:01:49]} Bb7 {[%emt 0:00:06]} 12. d5 {[%emt 0:07:10]} Ne7 {[%emt 0:01:37]} 13. Re1 {[%emt 0:00:04]} h6 {[%emt 0:03:49]} 14. Be3 {[%emt 0:02:05]} Bxe3 {[%emt 0:01:02]} 15. Rxe3 {[%emt 0:00:03]} O-O {[%emt 0:05:33]} 16. c4 {[%emt 0:02:21]} c6 {[%emt 0:06:16]} 17. Nc3 {[%emt 0:21:24]} bxc4 {[%emt 0:01:17]} 18. Bxc4 {[%emt 0:00:14]} cxd5 {[%emt 0:00:06]} 19. exd5 {[%emt 0:00:50]} Ne8 {[%emt 0:02:38]} 20. Qd3 {[%emt 0:03:27]} Kh8 {[%emt 0:03:11]} 21. Ra2 {[%emt 0:05:47]} f5 {[%emt 0:00:58]} 22. Nd2 {[%emt 0:03:09]} Nf6 {[%emt 0:02:41]} 23. Re1 {[%emt 0:03:13]} Qc7 {[%emt 0:05:00]} 24. b4 {[%emt 0:11:45]} Rfc8 {[%emt 0:02:52]} 25. Ra3 {[%emt 0:00:04]} e4 {[%emt 0:09:50]} 26. Qd4 {[%emt 0:02:21]} Ng6 {[%emt 0:00:19]} 27. f3 {[%emt 0:04:16]} Ne5 {[%emt 0:02:58]} 28. Bf1 {[%emt 0:00:18]} exf3 {[%emt 0:01:44]} 29. gxf3 {[%emt 0:01:07]} f4 {[%emt 0:05:26]} 30. Qxf4 {[%emt 0:06:25]} Nxd5 {[%emt 0:00:29]} 31. Nxd5 {[%emt 0:00:32]} Bxd5 {[%emt 0:00:03]} 32. Qd4 {[%emt 0:01:47]} Qf7 {[%emt 0:02:24]} 33. Bg2 {[%emt 0:07:45]} Nc6 {[%emt 0:00:35]} 34. Qg4 {[%emt 0:02:09]} Nxb4 {[%emt 0:01:19]} 35. Rb1 {[%emt 0:01:13]} Nc2 {[%emt 0:10:54]} 36. Rxb8 {[%emt 0:02:20]} Rxb8 {[%emt 0:00:00]} 37. Rc3 {[%emt 0:00:13]} Qa7+ {[%emt 0:08:07]} 38. Kh1 {[%emt 0:00:01]} Ne3 {[%emt 0:02:03]} 39. Qg6 {[%emt 0:00:31]} Qe7 {[%emt 0:02:31]} 40. Ne4 {[%emt 0:00:00]} Nxg2 {[%emt 0:00:00]} 41. Kxg2 {[%emt 0:02:57]} Bxe4 {[%emt 0:11:24]} 42. fxe4 {[%emt 0:02:42]} Rf8 {[%emt 0:07:08]} 43. Rf3 {[%emt 0:06:20]} Rxf3 {[%emt 0:01:06]} 44. Kxf3 {[%emt 0:00:03]} Qe5 {[%emt 0:06:56]} 45. Ke3 {[%emt 0:02:08]} Qxa5 {[%emt 0:03:05]} 46. Qxd6 {[%emt 0:00:26]} Qc3+ {[%emt 0:00:07]} 47. Ke2 {[%emt 0:00:28]} Qc4+ {[%emt 0:06:45]} 48. Ke3 {[%emt 0:00:28]} Qc3+ {[%emt 0:00:01]} 49. Ke2 {[%emt 0:00:07]} Qxh3 {[%emt 0:02:41]} 50. e5 {[%emt 0:00:03]} Qg3 {[%emt 0:00:18]} 51. Qe7 {[%emt 0:01:15]} Kh7 {[%emt 0:01:17]} 52. e6 {[%emt 0:00:28]} Qe5+ {[%emt 0:00:06]} 53. Kd3 {[%emt 0:01:02]} Qf5+ {[%emt 0:00:17]} 54. Kd4 {[%emt 0:00:49]} Kg6 {[%emt 0:00:20]} 55. Qe8+ {[%emt 0:00:37]} Kh7 {[%emt 0:00:16]} 56. e7 {[%emt 0:00:59]} Qf4+ {[%emt 0:00:57]} 57. Kd5 {[%emt 0:00:20]} Qf5+ {[%emt 0:00:02]} 58. Kd6 {[%emt 0:00:21]} Qf4+ {[%emt 0:00:34]} 59. Kd7 {[%emt 0:00:25]} Qa4+ {[%emt 0:01:33]} 60. Kd8 {[%emt 0:00:03]} Qa5+ {[%emt 0:00:02]} 61. Kc8 {[%emt 0:00:27]} Qc5+ {[%emt 0:00:01]} 62. Kb7 {[%emt 0:00:23]} Qb4+ {[%emt 0:00:06]} 63. Kxa6 {[%emt 0:01:13]} Qa3+ {[%emt 0:00:04]} 64. Kb6 {[%emt 0:00:25]} Qb4+ {[%emt 0:00:17]} 65. Kc7 {[%emt 0:00:22]} Qc5+ {[%emt 0:00:08]} 66. Kb7 {[%emt 0:00:51]} Qb4+ {[%emt 0:00:03]} 67. Kc7 {[%emt 0:06:26]} 1/2-1/2

[Event "Memorijal Nesic Predrag IM 202"]
[Site "Pozarevac"]
[Date "2022.02.13"]
[Round "7.5"]
[White "Milanovic, Slavisa"]
[Black "Spasic, Petar"]
[Result "1-0"]
[ECO "A40"]
[WhiteElo "2296"]
[BlackElo "2334"]
[Annotator "ChessBase"]
[PlyCount "59"]
[EventDate "2022.02.08"]
[EventType "tourn"]
[EventCountry "SRB"]
[SourceTitle "playchess.com"]
[Source "ChessBase"]
[SourceQuality "1"]
[TimeControl "40/5400+30:900+30"]

1. Nf3 {[%emt 0:01:09]} c5 {[%emt 0:00:15]} 2. c4 {[%emt 0:00:45]} g6 {[%emt 0:00:52]} 3. d4 {[%emt 0:00:07]} Bg7 {[%emt 0:00:19]} 4. e4 {[%emt 0:02:00]} Nc6 {[%emt 0:00:22]} 5. dxc5 {[%emt 0:03:37]} Nf6 {[%emt 0:01:36]} 6. Nc3 {[%emt 0:04:06]} Qa5 {[%emt 0:01:12]} 7. Bd2 {[%emt 0:01:47]} Qxc5 {[%emt 0:00:09]} 8. Be2 {[%emt 0:00:24]} O-O {[%emt 0:00:16]} 9. O-O {[%emt 0:01:50]} Qb6 {[%emt 0:05:50]} 10. h3 {[%emt 0:09:50]} d6 {[%emt 0:00:40]} 11. a3 {[%emt 0:01:49]} a5 {[%emt 0:04:52]} 12. Be3 {[%emt 0:01:21]} Qd8 {[%emt 0:00:47]} 13. Qc2 {[%emt 0:03:42]} b6 {[%emt 0:09:01]} 14. Rfd1 {[%emt 0:00:54]} Bd7 {[%emt 0:06:32]} 15. Rab1 {[%emt 0:06:44]} Rb8 {[%emt 0:08:22]} 16. b4 {[%emt 0:10:31]} axb4 {[%emt 0:00:46]} 17. axb4 {[%emt 0:00:05]} Qc8 {[%emt 0:00:35]} 18. Rdc1 {[%emt 0:02:07]} Rb7 {[%emt 0:05:33]} 19. b5 {[%emt 0:10:39]} Na5 {[%emt 0:02:13]} 20. Qa4 {[%emt 0:01:48]} Qb8 {[%emt 0:04:07]} 21. e5 {[%emt 0:07:33]} dxe5 {[%emt 0:02:56]} 22. c5 {[%emt 0:00:04]} bxc5 {[%emt 0:00:46]} 23. Bxc5 {[%emt 0:01:08]} e4 {[%emt 0:01:57]} 24. Qxa5 {[%emt 0:08:30]} exf3 {[%emt 0:07:53]} 25. Bxf3 {[%emt 0:00:06]} Rc7 {[%emt 0:00:05]} 26. b6 {[%emt 0:01:21]} Rcc8 {[%emt 0:00:59]} 27. b7 {[%emt 0:00:33]} Rce8 {[%emt 0:01:31]} 28. Ba7 {[%emt 0:01:16]} Qf4 {[%emt 0:00:05]} 29. Ne2 {[%emt 0:01:19]} Qd6 {[%emt 0:01:48]} 30. Rd1 {[%emt 0:00:54]} 1-0